fUSD/lending_fUSD_20250308
["ID","MTS","AMOUNT","RATE_DAILY","PERIOD"]
[355621992,1741401041498,-503.33022502,9.798e-05,2]
[355621993,1741401041507,-294.64810004,9.798e-05,2]
[355621994,1741401041519,-205.35189996,9.798e-05,2]
[355621995,1741401041528,-505.29152857,9.798e-05,2]
[355621996,1741401041538,-500.0,9.798e-05,2]
[355621997,1741401041547,-502.10205198,9.798e-05,2]
[355621998,1741401041556,-738.36729019,9.798e-05,2]
[355622003,1741401043243,-8502.39998162,9.797e-05,2]
[355622004,1741401043255,-1550.55192851,9.797e-05,2]
[355622005,1741401043266,-1740.01,9.797e-05,2]
[355622006,1741401043278,-313.34808987,9.797e-05,2]
[355622007,1741401043287,-163.6066906,9.797e-05,2]
[355622008,1741401043298,-799.67334116,9.797e-05,2]
[355622009,1741401043309,-1176.81996824,9.797e-05,2]
[355622010,1741401043319,-602.93270981,9.798e-05,2]
[355622011,1741401043328,-505.65754986,9.798e-05,2]
[355622012,1741401043338,-500.0,9.798e-05,2]
[355622013,1741401043346,-500.0,9.798e-05,2]
[355622014,1741401043357,-2003.59,9.798e-05,2]
[355622015,1741401043370,-503.5885166,9.798e-05,2]
[355622016,1741401043379,-500.0,9.798e-05,2]
[355622017,1741401043388,-500.0,9.798e-05,2]
[355622018,1741401043397,-500.0,9.798e-05,2]
[355622019,1741401043408,-613.64,9.798e-05,2]
[355622020,1741401043418,-502.13385098,9.798e-05,2]
[355622021,1741401043427,-28.23740451,9.798e-05,2]
[355622022,1741401043452,-471.76259549,9.798e-05,2]
[355622023,1741401043462,-500.0,9.798e-05,2]
[355622024,1741401043472,-133.54645023,9.798e-05,2]
[355622025,1741401043507,-1603.13354977,9.798e-05,2]
[355622026,1741401043517,-500.0,9.798e-05,2]
[355622027,1741401043526,-565.21190183,9.798e-05,2]
[355622028,1741401043536,-500.0,9.798e-05,2]
[355622029,1741401043545,-500.0,9.798e-05,2]
[355622030,1741401043555,-2502.6545484,9.798e-05,2]
[355622031,1741401044550,-320.0754516,9.798e-05,2]
[355622032,1741401044559,-295.33381744,9.798e-05,2]
[355622033,1741401045634,-204.66618256,9.798e-05,2]
[355622034,1741401045644,-500.0,9.798e-05,2]
[355622035,1741401045655,-512.58890109,9.798e-05,2]
[355622036,1741401045664,-1918.9,9.798e-05,2]
[355622037,1741401045673,-500.0,9.798e-05,2]
[355622038,1741401045683,-500.0,9.798e-05,2]
[355622039,1741401045692,-500.0,9.798e-05,2]
[355622040,1741401045701,-980.61,9.798e-05,2]
[355622041,1741401045711,-500.0,9.798e-05,2]
[355622042,1741401045720,-500.0,9.798e-05,2]
[355622043,1741401045729,-500.0,9.798e-05,2]
[355622044,1741401045739,-1503.13,9.798e-05,2]
[355622045,1741401045748,-1602.96,9.798e-05,2]
[355622046,1741401045758,-500.0,9.798e-05,2]
[355622047,1741401045768,-500.0,9.798e-05,2]
[355622048,1741401045777,-1563.16,9.798e-05,2]
[355622049,1741401045787,-163.11059073,9.798e-05,2]
[355622050,1741401045796,-2519.9,9.798e-05,2]
[355622051,1741401045805,-500.0,9.798e-05,2]
[355622052,1741401045815,-1401.2,9.798e-05,2]
[355622053,1741401045824,-1289.3,9.798e-05,2]
[355622054,1741401045834,-1709.53,9.798e-05,2]
[355622055,1741401045843,-818.38,9.798e-05,2]
[355622056,1741401045853,-506.14077386,9.798e-05,2]
[355622057,1741401045862,-500.0,9.798e-05,2]
[355622058,1741401045872,-163.64712767,9.798e-05,2]
[355622059,1741401045882,-500.0,9.798e-05,2]
[355622060,1741401045891,-2029.75,9.798e-05,2]
[355622061,1741401045901,-501.30663134,9.798e-05,2]
[355622062,1741401045910,-500.0,9.798e-05,2]
[355622063,1741401045920,-1783.2,9.798e-05,2]
[355622064,1741401045930,-1458.93,9.798e-05,2]
[355622065,1741401045939,-501.17540315,9.798e-05,2]
[355622066,1741401045948,-1495.48,9.798e-05,2]
[355622067,1741401045958,-500.0,9.798e-05,2]
[355622068,1741401045969,-751.83,9.798e-05,2]
[355622069,1741401045979,-1014.72,9.798e-05,2]
[355622070,1741401045988,-513.43014085,9.798e-05,2]
[355622071,1741401045998,-500.0,9.798e-05,2]
[355622072,1741401046010,-2288.38,9.798e-05,2]
[355622073,1741401046019,-2885.3,9.798e-05,2]
[355622074,1741401046029,-500.0,9.798e-05,2]
[355622075,1741401046039,-514.86589591,9.798e-05,2]
[355622076,1741401046049,-2630.34,9.798e-05,2]
[355622077,1741401046059,-500.0,9.798e-05,2]
[355622078,1741401046068,-1066.2,9.798e-05,2]
[355622079,1741401046077,-517.13,9.798e-05,2]
[355622080,1741401046087,-161.73007748,9.798e-05,2]
[355622093,1741401046236,-460.76632365,9.798e-05,2]
[355622094,1741401046245,-500.0,9.798e-05,2]
[355622095,1741401046255,-500.0,9.798e-05,2]
[355622096,1741401046264,-500.0,9.798e-05,2]
[355622097,1741401046274,-941.29,9.798e-05,2]
[355622098,1741401046283,-500.0,9.798e-05,2]
[355622099,1741401046293,-508.36467708,9.798e-05,2]
[355622100,1741401046302,-500.0,9.798e-05,2]
[355622101,1741401046311,-512.827905,9.798e-05,2]
[355622102,1741401046322,-332.52393822,9.798e-05,2]
[355622103,1741401046332,-500.0,9.798e-05,2]
[355622104,1741401046342,-500.0,9.798e-05,2]
[355622105,1741401046351,-509.35210353,9.798e-05,2]
[355622106,1741401046363,-1408.35,9.798e-05,2]
[355622107,1741401046373,-510.17026077,9.798e-05,2]
[355622108,1741401046383,-509.79387847,9.798e-05,2]
[355622109,1741401046392,-500.0,9.798e-05,2]
[355622110,1741401046403,-513.32317587,9.798e-05,2]
[355622111,1741401046413,-504.00229054,9.798e-05,2]
[355622112,1741401046422,-1424.49,9.798e-05,2]
[355622113,1741401046432,-500.0,9.798e-05,2]
[355622114,1741401046443,-500.0,9.798e-05,2]
[355622115,1741401046452,-500.0,9.798e-05,2]
[355622116,1741401046462,-527.53288551,9.798e-05,2]
[355622117,1741401046471,-1424.92,9.798e-05,2]
[355622118,1741401046480,-500.0,9.798e-05,2]
[355622119,1741401046490,-151.0,9.798e-05,2]
[355622120,1741401046499,-1546.65,9.798e-05,2]
[355622121,1741401046509,-509.68529075,9.798e-05,2]
[355622122,1741401046519,-500.0,9.798e-05,2]
[355622123,1741401046529,-1698.4,9.798e-05,2]
[355622124,1741401046539,-2907.58,9.798e-05,2]
[355622125,1741401046547,-500.0,9.798e-05,2]
[355622126,1741401046557,-500.0,9.798e-05,2]
[355622127,1741401046567,-1187.13,9.798e-05,2]
[355622128,1741401046576,-555.26,9.798e-05,2]
[355622129,1741401046586,-619.96100194,9.798e-05,2]
[355622130,1741401046595,-1853.26,9.798e-05,2]
[355622131,1741401046604,-500.0,9.798e-05,2]
[355622132,1741401046614,-500.0,9.798e-05,2]
[355622133,1741401046623,-3551.7,9.798e-05,2]
[355622134,1741401046632,-506.68853831,9.798e-05,2]
[355622135,1741401046641,-3025.65,9.798e-05,2]
[355622136,1741401046651,-812.08,9.798e-05,2]
[355622137,1741401046660,-1360.25,9.798e-05,2]
[355622138,1741401046670,-506.10170865,9.798e-05,2]
[355622139,1741401046679,-343.65679705,9.798e-05,2]
[355622140,1741401046689,-361.77247754,9.798e-05,2]
[355622141,1741401046699,-3547.76,9.798e-05,2]
[355622142,1741401046708,-3288.75,9.798e-05,2]
[355622143,1741401046719,-500.0,9.798e-05,2]
[355622144,1741401046729,-2276.58,9.798e-05,2]
[355622145,1741401046740,-500.0,9.798e-05,2]
[355622146,1741401046750,-3018.56,9.798e-05,2]
[355622147,1741401046760,-500.0,9.798e-05,2]
[355622148,1741401046770,-500.0,9.798e-05,2]
[355622149,1741401046780,-500.0,9.798e-05,2]
[355622150,1741401046792,-500.0,9.798e-05,2]
[355622151,1741401046802,-1199.47,9.798e-05,2]
[355622152,1741401046812,-500.0,9.798e-05,2]
[355622153,1741401046821,-500.0,9.798e-05,2]
[355622154,1741401046832,-1777.05,9.798e-05,2]
[355622155,1741401046842,-532.32255949,9.798e-05,2]
[355622156,1741401046851,-1818.41,9.798e-05,2]
[355622157,1741401046860,-500.0,9.798e-05,2]
[355622158,1741401046870,-796.36,9.798e-05,2]
[355622159,1741401046879,-2792.46,9.798e-05,2]
[355622160,1741401046888,-2735.53,9.798e-05,2]
[355622161,1741401046897,-500.0,9.798e-05,2]
[355622162,1741401046906,-639.6915853,9.798e-05,2]
[355622163,1741401046916,-13481.51,9.798e-05,2]
[355622164,1741401046929,-354.10837179,9.798e-05,2]
[355622165,1741401046941,-1109.07,9.798e-05,2]
[355622166,1741401046951,-500.0,9.798e-05,2]
[355622167,1741401046960,-1424.68,9.798e-05,2]
[355622168,1741401046971,-500.0,9.798e-05,2]
[355622169,1741401046981,-500.0,9.798e-05,2]
[355622170,1741401046990,-500.0,9.798e-05,2]
[355622171,1741401047000,-14200.32,9.798e-05,2]
[355622172,1741401047009,-984.11,9.798e-05,2]
[355622173,1741401047019,-3063.41,9.798e-05,2]
[355622174,1741401047028,-5799.88,9.798e-05,2]
[355622175,1741401047037,-2928.57,9.798e-05,2]
[355622176,1741401047046,-2384.42,9.798e-05,2]
[355622177,1741401047055,-7844.64,9.798e-05,2]
[355622178,1741401047064,-290.18855426,9.798e-05,2]
[355622179,1741401047074,-500.0,9.798e-05,2]
[355622180,1741401047083,-500.0,9.798e-05,2]
[355622181,1741401047094,-500.0,9.798e-05,2]
[355622182,1741401047105,-5254.87,9.798e-05,2]
[355622183,1741401047115,-1868.08,9.798e-05,2]
[355622184,1741401047124,-515.66932786,9.798e-05,2]
[355622185,1741401047135,-500.0,9.798e-05,2]
[355622186,1741401047149,-5404.28,9.798e-05,2]
[355622187,1741401047170,-4799.47,9.798e-05,2]
[355622188,1741401047191,-1174.88,9.798e-05,2]
[355622189,1741401047211,-2726.69,9.798e-05,2]
[355622190,1741401047227,-201.95391059,9.798e-05,2]
[355622191,1741401047245,-500.0,9.798e-05,2]
[355622192,1741401047264,-207.62501444,9.798e-05,2]
[355622193,1741401047285,-296.8222178,9.798e-05,2]
[355622194,1741401047305,-2515.7,9.798e-05,2]
[355622195,1741401047324,-951.77,9.798e-05,2]
[355622196,1741401047343,-500.0,9.798e-05,2]
[355622197,1741401047357,-1257.36,9.798e-05,2]
[355622198,1741401047381,-6332.65,9.798e-05,2]
[355622199,1741401047393,-2137.9,9.798e-05,2]
[355622200,1741401047408,-500.0,9.798e-05,2]
[355622201,1741401047423,-1433.74,9.798e-05,2]
[355622202,1741401047441,-500.0,9.798e-05,2]
[355622203,1741401047455,-1047.22,9.798e-05,2]
[355622204,1741401047471,-500.0,9.798e-05,2]
[355622205,1741401047490,-16381.56,9.798e-05,2]
[355622206,1741401047505,-2045.88,9.798e-05,2]
[355622207,1741401047520,-1591.12,9.798e-05,2]
[355622208,1741401047535,-2180.47,9.798e-05,2]
[355622209,1741401047550,-500.0,9.798e-05,2]
[355622210,1741401047565,-500.0,9.798e-05,2]
[355622211,1741401047579,-500.0,9.798e-05,2]
[355622212,1741401047595,-3752.61,9.798e-05,2]
[355622213,1741401047610,-500.0,9.798e-05,2]
[355622214,1741401047624,-500.0,9.798e-05,2]
[355622215,1741401047640,-2504.67,9.798e-05,2]
[355622216,1741401047654,-1799.56,9.798e-05,2]
[355622217,1741401047669,-500.0,9.798e-05,2]
[355622218,1741401047684,-500.0,9.798e-05,2]
[355622219,1741401047701,-500.0,9.798e-05,2]
[355622220,1741401047718,-645.8936573,9.798e-05,2]
[355622221,1741401047736,-1671.99,9.798e-05,2]
[355622222,1741401047751,-500.0,9.798e-05,2]
[355622223,1741401047767,-500.0,9.798e-05,2]
[355622224,1741401047783,-500.0,9.798e-05,2]
[355622225,1741401047798,-500.0,9.798e-05,2]
[355622226,1741401047813,-500.0,9.798e-05,2]
[355622227,1741401047829,-2829.0,9.798e-05,2]
[355622228,1741401047845,-500.0,9.798e-05,2]
[355622229,1741401047860,-500.0,9.798e-05,2]
[355622230,1741401047875,-500.0,9.798e-05,2]
[355622231,1741401047891,-500.0,9.798e-05,2]
[355622232,1741401047912,-500.0,9.798e-05,2]
[355622233,1741401047929,-500.0,9.798e-05,2]
[355622234,1741401047944,-4512.92,9.798e-05,2]
[355622235,1741401047960,-500.0,9.798e-05,2]
[355622236,1741401047980,-3561.8,9.798e-05,2]
[355622237,1741401047995,-4011.97,9.798e-05,2]
[355622238,1741401048012,-500.0,9.798e-05,2]
[355622239,1741401048028,-515.04946532,9.798e-05,2]
[355622240,1741401048043,-503.36566309,9.798e-05,2]
[355622241,1741401048059,-500.0,9.798e-05,2]
[355622242,1741401048075,-3405.18,9.798e-05,2]
[355622243,1741401048091,-4296.57,9.798e-05,2]
[355622244,1741401048106,-502.48135145,9.798e-05,2]
[355622245,1741401048121,-4304.73,9.798e-05,2]
[355622246,1741401048136,-2312.58,9.798e-05,2]
[355622247,1741401048152,-500.0,9.798e-05,2]
[355622248,1741401048167,-501.48391563,9.798e-05,2]
[355622249,1741401048183,-500.53272185,9.798e-05,2]
[355622250,1741401048200,-6282.9,9.798e-05,2]
[355622251,1741401048216,-500.0,9.798e-05,2]
[355622252,1741401048232,-500.0,9.798e-05,2]
[355622253,1741401048248,-13273.44,9.798e-05,2]
[355622254,1741401048263,-191.93906298,9.798e-05,2]
[355622255,1741401048279,-519.17382592,9.798e-05,2]
[355622256,1741401048294,-3428.75,9.798e-05,2]
[355622257,1741401048310,-188.74326691,9.798e-05,2]
[355622258,1741401048327,-9427.25,9.798e-05,2]
[355622259,1741401048343,-908.92,9.799e-05,2]
[355622260,1741401048359,-500.0,9.799e-05,2]
[355622261,1741401048379,-500.0,9.799e-05,2]
[355622262,1741401048395,-500.0,9.799e-05,2]
[355622263,1741401048412,-500.0,9.799e-05,2]
[355622264,1741401048428,-500.0,9.799e-05,2]
[355622265,1741401048444,-500.0,9.799e-05,2]
[355622266,1741401048460,-500.0,9.799e-05,2]
[355622267,1741401048475,-512.85735094,9.799e-05,2]
[355622268,1741401048491,-500.59540292,9.799e-05,2]
[355622269,1741401048506,-500.0,9.799e-05,2]
[355622270,1741401048522,-988.79,9.799e-05,2]
[355622271,1741401048538,-500.0,9.799e-05,2]
[355622272,1741401048553,-500.0,9.799e-05,2]
[355622273,1741401048570,-1125.05,9.799e-05,2]
[355622274,1741401048585,-677.1,9.799e-05,2]
[355622275,1741401048601,-500.0,9.799e-05,2]
[355622276,1741401048617,-1496.78,9.799e-05,2]
[355622277,1741401048633,-537.0734918,9.799e-05,2]
[355622278,1741401048645,-500.0,9.799e-05,2]
[355622279,1741401048876,-500.0,9.799e-05,2]
[355622280,1741401048904,-500.0,9.799e-05,2]
[355622281,1741401048914,-500.0,9.799e-05,2]
[355622282,1741401048924,-500.0,9.799e-05,2]
[355622283,1741401048933,-394.60866337,9.799e-05,2]
[355622284,1741401048942,-157.07039666,9.799e-05,2]
[355622285,1741401048951,-500.0,9.799e-05,2]
[355622286,1741401048961,-500.0,9.799e-05,2]
[355622287,1741401048971,-500.0,9.799e-05,2]
[355622288,1741401048980,-500.0,9.799e-05,2]
[355622289,1741401048989,-500.0,9.799e-05,2]
[355622290,1741401048999,-500.0,9.799e-05,2]
[355622291,1741401049008,-1471.74,9.799e-05,2]
[355622292,1741401049018,-500.0,9.799e-05,2]
[355622293,1741401049027,-500.0,9.799e-05,2]
[355622294,1741401049036,-500.0,9.799e-05,2]
[355622295,1741401049046,-500.0,9.799e-05,2]
[355622296,1741401049055,-1268.36,9.799e-05,2]
[355622297,1741401049065,-500.0,9.799e-05,2]
[355622298,1741401049074,-377.69179082,9.799e-05,2]
[355622299,1741401049084,-500.0,9.799e-05,2]
[355622300,1741401049093,-500.0,9.799e-05,2]
[355622301,1741401049102,-500.0,9.799e-05,2]
[355622302,1741401049112,-1388.8,9.799e-05,2]
[355622303,1741401049121,-500.0,9.799e-05,2]
[355622304,1741401049130,-500.0,9.799e-05,2]
[355622305,1741401049140,-500.0,9.799e-05,2]
[355622306,1741401049150,-500.0,9.799e-05,2]
[355622307,1741401049159,-500.0,9.799e-05,2]
[355622308,1741401049168,-500.0,9.799e-05,2]
[355622309,1741401049178,-500.0,9.799e-05,2]
[355622310,1741401049187,-1567.0,9.799e-05,2]
[355622311,1741401049198,-500.0,9.799e-05,2]
[355622312,1741401049207,-500.0,9.799e-05,2]
[355622313,1741401049217,-500.0,9.799e-05,2]
[355622314,1741401049226,-500.0,9.799e-05,2]
[355622315,1741401049235,-509.26629824,9.799e-05,2]
[355622316,1741401049245,-500.0,9.799e-05,2]
[355622317,1741401049255,-500.0,9.799e-05,2]
[355622318,1741401049265,-500.0,9.799e-05,2]
[355622319,1741401049274,-500.0,9.799e-05,2]
[355622320,1741401049284,-1636.61,9.799e-05,2]
[355622321,1741401049293,-500.0,9.799e-05,2]
[355622322,1741401049303,-500.0,9.799e-05,2]
[355622323,1741401049313,-500.0,9.799e-05,2]
[355622324,1741401049323,-500.0,9.799e-05,2]
[355622325,1741401049333,-500.0,9.799e-05,2]
[355622326,1741401049343,-500.0,9.799e-05,2]
[355622327,1741401049352,-500.0,9.799e-05,2]
[355622328,1741401049361,-897.68,9.799e-05,2]
[355622329,1741401049375,-1090.97,9.799e-05,2]
[355622330,1741401049386,-500.0,9.799e-05,2]
[355622331,1741401049395,-500.0,9.799e-05,2]
[355622332,1741401049405,-500.0,9.799e-05,2]
[355622333,1741401049415,-618.47,9.799e-05,2]
[355622334,1741401049427,-500.0,9.799e-05,2]
[355622335,1741401049437,-500.0,9.799e-05,2]
[355622336,1741401049448,-500.0,9.799e-05,2]
[355622337,1741401049457,-500.0,9.799e-05,2]
[355622338,1741401049467,-1461.69,9.799e-05,2]
[355622339,1741401049476,-500.0,9.799e-05,2]
[355622340,1741401049486,-500.0,9.799e-05,2]
[355622341,1741401049495,-500.0,9.799e-05,2]
[355622342,1741401049504,-500.0,9.799e-05,2]
[355622343,1741401049513,-500.0,9.799e-05,2]
[355622344,1741401049522,-500.0,9.799e-05,2]
[355622345,1741401049532,-500.0,9.799e-05,2]
[355622346,1741401049541,-500.0,9.799e-05,2]
[355622347,1741401049550,-530.69,9.799e-05,2]
[355622348,1741401049560,-500.0,9.799e-05,2]
[355622349,1741401049569,-500.0,9.799e-05,2]
[355622350,1741401049578,-500.0,9.799e-05,2]
[355622351,1741401049587,-500.0,9.799e-05,2]
[355622352,1741401049596,-500.0,9.799e-05,2]
[355622353,1741401049606,-944.28,9.799e-05,2]
[355622354,1741401049616,-758.46,9.799e-05,2]
[355622355,1741401049625,-500.0,9.799e-05,2]
[355622356,1741401049634,-500.0,9.799e-05,2]
[355622357,1741401049643,-500.0,9.799e-05,2]
[355622358,1741401049652,-320.69584766,9.799e-05,2]
[355622359,1741401049665,-704.53,9.799e-05,2]
[355622360,1741401049674,-500.0,9.799e-05,2]
[355622361,1741401049683,-500.0,9.799e-05,2]
[355622362,1741401049692,-500.0,9.799e-05,2]
[355622363,1741401049702,-758.9,9.799e-05,2]
[355622364,1741401049711,-500.0,9.799e-05,2]
[355622365,1741401049720,-500.0,9.799e-05,2]
[355622366,1741401049729,-587.08039703,9.799e-05,2]
[355622367,1741401049739,-500.0,9.799e-05,2]
[355622368,1741401049748,-508.18400093,9.799e-05,2]
[355622369,1741401049758,-500.0,9.799e-05,2]
[355622370,1741401049770,-500.0,9.799e-05,2]
[355622371,1741401049779,-510.28,9.799e-05,2]
[355622372,1741401049790,-500.0,9.799e-05,2]
[355622373,1741401049802,-500.0,9.799e-05,2]
[355622374,1741401049813,-500.0,9.799e-05,2]
[355622375,1741401049823,-500.0,9.799e-05,2]
[355622376,1741401049833,-500.0,9.799e-05,2]
[355622377,1741401049843,-500.0,9.799e-05,2]
[355622378,1741401049853,-542.21,9.799e-05,2]
[355622379,1741401049866,-500.0,9.799e-05,2]
[355622380,1741401049876,-500.0,9.799e-05,2]
[355622381,1741401049886,-500.0,9.799e-05,2]
[355622382,1741401049895,-500.0,9.799e-05,2]
[355622383,1741401049906,-500.0,9.799e-05,2]
[355622384,1741401049917,-500.0,9.799e-05,2]
[355622385,1741401049927,-500.0,9.799e-05,2]
[355622386,1741401049937,-500.0,9.799e-05,2]
[355622387,1741401049947,-500.0,9.799e-05,2]
[355622388,1741401049957,-539.82052315,9.799e-05,2]
[355622389,1741401049967,-500.0,9.799e-05,2]
[355622390,1741401049978,-500.0,9.799e-05,2]
[355622391,1741401049988,-782.78,9.799e-05,2]
[355622392,1741401050001,-512.91821898,9.799e-05,2]
[355622393,1741401050011,-500.0,9.799e-05,2]
[355622394,1741401050022,-500.0,9.799e-05,2]
[355622395,1741401050032,-1480.63,9.799e-05,2]
[355622396,1741401050042,-502.74418835,9.799e-05,2]
[355622397,1741401050051,-500.0,9.799e-05,2]
[355622398,1741401050062,-500.0,9.799e-05,2]
[355622399,1741401050071,-500.0,9.799e-05,2]
[355622400,1741401050081,-1029.73,9.799e-05,2]
[355622401,1741401050091,-506.74940504,9.799e-05,2]
[355622402,1741401050100,-500.0,9.799e-05,2]
[355622403,1741401050110,-500.0,9.799e-05,2]
[355622404,1741401050121,-1205.66,9.799e-05,2]
[355622405,1741401050131,-500.0,9.799e-05,2]
[355622406,1741401050140,-500.0,9.799e-05,2]
[355622407,1741401050149,-507.87999204,9.799e-05,2]
[355622408,1741401050159,-504.55170182,9.799e-05,2]
[355622409,1741401050168,-500.0,9.799e-05,2]
[355622410,1741401050177,-500.0,9.799e-05,2]
[355622411,1741401050187,-2555.05,9.799e-05,2]
[355622412,1741401050198,-500.0,9.799e-05,2]
[355622413,1741401050207,-500.0,9.799e-05,2]
[355622414,1741401050217,-500.0,9.799e-05,2]
[355622415,1741401050227,-1295.26,9.799e-05,2]
[355622416,1741401050236,-500.0,9.799e-05,2]
[355622417,1741401050246,-500.0,9.799e-05,2]
[355622418,1741401050255,-500.0,9.799e-05,2]
[355622419,1741401050264,-500.0,9.799e-05,2]
[355622420,1741401050275,-500.0,9.799e-05,2]
[355622421,1741401050285,-500.0,9.799e-05,2]
[355622422,1741401050296,-500.0,9.799e-05,2]
[355622423,1741401050307,-500.0,9.799e-05,2]
[355622424,1741401050318,-500.0,9.799e-05,2]
[355622425,1741401050329,-500.0,9.799e-05,2]
[355622426,1741401050339,-500.0,9.799e-05,2]
[355622427,1741401050350,-500.0,9.799e-05,2]
[355622428,1741401050360,-1612.29,9.799e-05,2]
[355622429,1741401050375,-500.0,9.799e-05,2]
[355622430,1741401050385,-500.0,9.799e-05,2]
[355622431,1741401050395,-500.0,9.799e-05,2]
[355622432,1741401050407,-500.0,9.799e-05,2]
[355622433,1741401050417,-500.0,9.799e-05,2]
[355622434,1741401050428,-194.60013895,9.799e-05,2]
[355622435,1741401050439,-500.0,9.799e-05,2]
[355622436,1741401050449,-500.0,9.799e-05,2]
[355622437,1741401050459,-500.0,9.799e-05,2]
[355622438,1741401050469,-1906.91,9.799e-05,2]
[355622439,1741401050478,-500.0,9.799e-05,2]
[355622440,1741401050488,-2197.27,9.799e-05,2]
[355622441,1741401050497,-509.05680105,9.799e-05,2]
[355622442,1741401050507,-1173.01,9.799e-05,2]
[355622443,1741401050517,-500.0,9.799e-05,2]
[355622444,1741401050528,-500.0,9.799e-05,2]
[355622445,1741401050538,-1439.31,9.799e-05,2]
[355622446,1741401050548,-500.0,9.799e-05,2]
[355622447,1741401050557,-500.0,9.799e-05,2]
[355622448,1741401050567,-500.0,9.799e-05,2]
[355622449,1741401050577,-500.0,9.799e-05,2]
[355622450,1741401050586,-500.0,9.799e-05,2]
[355622451,1741401050596,-500.0,9.799e-05,2]
[355622452,1741401050605,-500.0,9.799e-05,2]
[355622453,1741401050615,-1525.98,9.799e-05,2]
[355622454,1741401050626,-500.0,9.799e-05,2]
[355622455,1741401050635,-500.0,9.799e-05,2]
[355622456,1741401050644,-500.0,9.799e-05,2]
[355622457,1741401050654,-500.0,9.799e-05,2]
[355622458,1741401050663,-500.0,9.799e-05,2]
[355622459,1741401050671,-500.0,9.799e-05,2]
[355622460,1741401050680,-512.89096498,9.799e-05,2]
[355622461,1741401050690,-500.0,9.799e-05,2]
[355622462,1741401050699,-668.38,9.799e-05,2]
[355622463,1741401050708,-500.0,9.799e-05,2]
[355622464,1741401050717,-500.0,9.799e-05,2]
[355622465,1741401050727,-500.0,9.799e-05,2]
[355622466,1741401050737,-500.0,9.799e-05,2]
[355622467,1741401050747,-500.0,9.799e-05,2]
[355622468,1741401050756,-2154.39,9.799e-05,2]
[355622469,1741401050766,-500.0,9.799e-05,2]
[355622470,1741401050775,-500.0,9.799e-05,2]
[355622471,1741401050785,-2375.84,9.799e-05,2]
[355622472,1741401050795,-510.86321942,9.799e-05,2]
[355622473,1741401050804,-500.0,9.799e-05,2]
[355622474,1741401050814,-500.0,9.799e-05,2]
[355622475,1741401050823,-500.0,9.799e-05,2]
[355622476,1741401050833,-271.19331468,9.799e-05,2]
[355622477,1741401050842,-2935.56,9.799e-05,2]
[355622478,1741401050851,-500.0,9.799e-05,2]
[355622479,1741401050861,-500.0,9.799e-05,2]
[355622480,1741401050871,-507.71122117,9.799e-05,2]
[355622481,1741401050881,-500.0,9.799e-05,2]
[355622482,1741401050891,-500.0,9.799e-05,2]
[355622483,1741401050903,-500.0,9.799e-05,2]
[355622484,1741401050913,-500.0,9.799e-05,2]
[355622485,1741401050924,-500.0,9.799e-05,2]
[355622486,1741401050934,-1418.89,9.799e-05,2]
[355622487,1741401050944,-500.0,9.799e-05,2]
[355622488,1741401050954,-500.0,9.799e-05,2]
[355622489,1741401050965,-500.0,9.799e-05,2]
[355622490,1741401050975,-500.0,9.799e-05,2]
[355622491,1741401050984,-500.0,9.799e-05,2]
[355622492,1741401050994,-500.0,9.799e-05,2]
[355622493,1741401051004,-1766.5,9.799e-05,2]
[355622494,1741401051014,-500.0,9.799e-05,2]
[355622495,1741401051024,-500.0,9.799e-05,2]
[355622496,1741401051033,-500.0,9.799e-05,2]
[355622497,1741401051045,-500.0,9.799e-05,2]
[355622498,1741401051057,-500.0,9.799e-05,2]
[355622499,1741401051068,-1837.75,9.799e-05,2]
[355622500,1741401051077,-1263.94,9.799e-05,2]
[355622501,1741401051087,-521.78,9.799e-05,2]
[355622502,1741401051096,-500.0,9.799e-05,2]
[355622503,1741401051105,-1225.5,9.799e-05,2]
[355622504,1741401051115,-500.0,9.799e-05,2]
[355622505,1741401051124,-2011.77,9.799e-05,2]
[355622506,1741401051133,-500.0,9.799e-05,2]
[355622507,1741401051143,-500.0,9.799e-05,2]